fUST/lending_fUST_20250719
["ID","MTS","AMOUNT","RATE_DAILY","PERIOD"]
[373135719,1752876641588,-500.0,0.00016647,2]
[373135720,1752876641600,-164.26806508,0.00016647,2]
[373135721,1752876641611,-500.0,0.00016647,2]
[373135722,1752876641624,-500.0,0.00016647,2]
[373135723,1752876641637,-500.0,0.00016647,2]
[373135724,1752876641649,-500.0,0.00016647,2]
[373135725,1752876641661,-500.0,0.00016647,2]
[373135726,1752876641674,-179.14433098,0.00016647,2]
[373135727,1752876641686,-151.0,0.00016647,2]
[373135728,1752876641698,-151.0,0.00016647,2]
[373135729,1752876641712,-151.0,0.00016647,2]
[373135730,1752876641725,-198.0,0.00016647,2]
[373135731,1752876641737,-202.883268,0.00016648,2]
[373135732,1752876641748,-202.883268,0.00016648,2]
[373135733,1752876641763,-460.0,0.00016648,2]
[373135734,1752876641775,-1029.4,0.00016648,2]
[373135735,1752876641787,-3121.05,0.00016648,2]
[373135736,1752876641801,-1090.71,0.00016648,2]
[373135737,1752876641818,-228.85966732,0.00016652,2]
[373135738,1752876641829,-460.0,0.00016715,2]
[373135739,1752876641841,-460.0,0.00016715,2]
[373135740,1752876641852,-460.0,0.00016715,2]
[373135741,1752876641863,-460.0,0.00016715,2]
[373135742,1752876641875,-460.0,0.00016715,2]
[373135743,1752876641887,-519.67,0.00016715,2]
[373135744,1752876641900,-1320.38,0.00016715,2]
[373135745,1752876641912,-252.32653086,0.00016715,2]
[373135746,1752876641926,-460.0,0.00016716,2]
[373135747,1752876641939,-460.0,0.00016716,2]
[373135748,1752876641952,-460.0,0.00016716,2]
[373135749,1752876641965,-460.0,0.00016716,2]
[373135750,1752876641979,-3602.87,0.00016716,2]
[373135751,1752876641991,-460.0,0.00016717,2]
[373135752,1752876642002,-460.0,0.00016717,2]
[373135753,1752876642012,-1923.94,0.00016717,2]
[373135754,1752876642023,-460.0,0.00016717,2]
[373135755,1752876642034,-460.0,0.00016717,2]
[373135756,1752876642047,-1604.81,0.00016717,2]
[373135757,1752876642063,-1078.1,0.00016717,2]
[373135758,1752876642075,-502.76,0.00016717,2]
[373135759,1752876642090,-460.0,0.00016717,2]
[373135760,1752876642100,-517.55,0.00016717,2]
[373135761,1752876642113,-460.0,0.00016718,2]
[373135762,1752876642124,-220.9,0.00016718,2]
[373135763,1752876642137,-462.82331436,0.00016718,2]
[373135764,1752876642152,-460.0,0.00016718,2]
[373135765,1752876642163,-515.49977529,0.00016718,2]
[373135768,1752876642175,-475.39008063,0.00016718,2]
[373135769,1752876642186,-460.0,0.00016718,2]
[373135770,1752876642198,-460.0,0.00016718,2]
[373135771,1752876642209,-460.0,0.00016718,2]
[373135772,1752876642221,-460.0,0.00016718,2]
[373135775,1752876642232,-450.72988793,0.00016718,2]
[373135777,1752876642243,-460.0,0.00016718,2]
[373135779,1752876642254,-460.0,0.00016718,2]
[373135781,1752876642266,-442.52,0.00016718,2]
[373135782,1752876642277,-460.0,0.00016718,2]
[373135783,1752876642288,-460.0,0.00016718,2]
[373135787,1752876642299,-460.0,0.00016718,2]
[373135791,1752876642312,-631.1,0.00016718,2]
[373135793,1752876642323,-460.0,0.00016718,2]
[373135795,1752876642335,-466.08153271,0.00016718,2]
[373135798,1752876642346,-460.0,0.00016718,2]
[373135801,1752876642357,-460.0,0.00016718,2]
[373135802,1752876642369,-460.0,0.00016718,2]
[373135803,1752876642380,-460.0,0.00016718,2]
[373135804,1752876642391,-460.0,0.00016718,2]
[373135805,1752876642402,-460.0,0.00016718,2]
[373135806,1752876642413,-1622.02,0.00016718,2]
[373135807,1752876642424,-460.0,0.00016718,2]
[373135808,1752876642435,-460.0,0.00016718,2]
[373135809,1752876642446,-460.0,0.00016718,2]
[373135810,1752876642457,-329.99917035,0.00016718,2]
[373135811,1752876642468,-471.82055495,0.00016718,2]
[373135813,1752876642480,-317.14943686,0.00016718,2]
[373135815,1752876642491,-460.0,0.00016718,2]
[373135818,1752876642506,-460.0,0.00016718,2]
[373135819,1752876642517,-460.0,0.00016718,2]
[373135821,1752876642529,-460.0,0.00016718,2]
[373135822,1752876642543,-460.0,0.00016718,2]
[373135823,1752876642554,-460.0,0.00016718,2]
[373135824,1752876642567,-649.85,0.00016718,2]
[373135825,1752876642579,-460.0,0.00016718,2]
[373135826,1752876642590,-460.0,0.00016718,2]
[373135827,1752876642602,-460.0,0.00016718,2]
[373135828,1752876642615,-466.26565688,0.00016718,2]
[373135829,1752876642628,-460.0,0.00016718,2]
[373135831,1752876642639,-460.0,0.00016718,2]
[373135833,1752876642650,-460.0,0.00016718,2]
[373135834,1752876642661,-460.0,0.00016718,2]
[373135835,1752876642672,-305.39820781,0.00016718,2]
[373135836,1752876642682,-460.0,0.00016718,2]
[373135837,1752876642693,-460.0,0.00016718,2]
[373135838,1752876642704,-460.0,0.00016718,2]
[373135839,1752876642715,-460.0,0.00016718,2]
[373135840,1752876642726,-460.0,0.00016718,2]
[373135841,1752876642739,-460.0,0.00016718,2]
[373135842,1752876642751,-253.2426375,0.00016718,2]
[373135843,1752876642762,-151.0,0.00016775,2]
[373135844,1752876642773,-460.0,0.00016775,2]
[373135845,1752876642784,-1490.28,0.00016775,2]
[373135846,1752876642795,-151.0,0.00016775,2]
[373135847,1752876642807,-151.0,0.00016775,2]
[373135848,1752876642818,-460.0,0.00016775,2]
[373135849,1752876642829,-460.0,0.00016775,2]
[373135850,1752876642840,-460.0,0.00016775,2]
[373135851,1752876642851,-460.0,0.00016776,2]
[373135852,1752876642864,-460.0,0.00016776,2]
[373135857,1752876643011,-460.0,0.00016776,2]
[373135858,1752876643030,-460.0,0.00016776,2]
[373135859,1752876643040,-460.0,0.00016776,2]
[373135860,1752876643050,-460.0,0.00016776,2]
[373135861,1752876643060,-440.16058785,0.00016776,2]
[373135862,1752876643069,-598.06,0.00016776,2]
[373135863,1752876643079,-460.0,0.00016776,2]
[373135864,1752876643089,-461.87045844,0.00016776,2]
[373135865,1752876643098,-460.0,0.00016776,2]
[373135866,1752876643107,-460.0,0.00016776,2]
[373135867,1752876643116,-460.0,0.00016776,2]
[373135868,1752876643126,-151.0,0.00016776,2]
[373135869,1752876643135,-151.0,0.00016776,2]
[373135870,1752876643145,-460.0,0.00016818,2]
[373135871,1752876643155,-460.0,0.00016818,2]
[373135872,1752876643164,-460.0,0.00016818,2]
[373135873,1752876643174,-743.2,0.00016818,2]
[373135874,1752876643183,-460.0,0.00016818,2]
[373135875,1752876643193,-460.0,0.00016818,2]
[373135876,1752876643202,-460.0,0.00016818,2]
[373135877,1752876643212,-460.0,0.00016818,2]
[373135878,1752876643222,-460.0,0.00016818,2]
[373135879,1752876643231,-460.0,0.00016818,2]
[373135880,1752876643241,-460.0,0.00016818,2]
[373135881,1752876643251,-460.0,0.00016818,2]
[373135882,1752876643262,-633.08,0.00016818,2]
[373135883,1752876643273,-460.0,0.00016818,2]
[373135884,1752876643284,-460.0,0.00016818,2]
[373135885,1752876643295,-552.51,0.00016818,2]
[373135886,1752876643307,-460.0,0.00016818,2]
[373135887,1752876643318,-460.0,0.00016818,2]
[373135888,1752876643327,-3316.03,0.00016819,2]
[373135889,1752876643337,-460.0,0.0001682,2]
[373135890,1752876643348,-460.0,0.0001682,2]
[373135891,1752876643360,-460.0,0.0001682,2]
[373135892,1752876643373,-460.0,0.0001682,2]
[373135893,1752876643383,-460.0,0.0001682,2]
[373135894,1752876643394,-460.0,0.0001682,2]
[373135895,1752876643405,-460.0,0.0001682,2]
[373135896,1752876643416,-460.0,0.0001682,2]
[373135897,1752876643429,-825.89,0.0001682,2]
[373135898,1752876643440,-460.0,0.0001682,2]
[373135899,1752876643451,-460.0,0.0001682,2]
[373135900,1752876643462,-460.0,0.0001682,2]
[373135901,1752876643474,-460.0,0.0001682,2]
[373135902,1752876643485,-460.0,0.0001682,2]
[373135903,1752876643495,-460.0,0.0001682,2]
[373135904,1752876643510,-151.0,0.00016821,2]
[373135905,1752876643520,-151.0,0.00016821,2]
[373135906,1752876643529,-151.0,0.00016821,2]
[373135907,1752876643543,-369.63909139,0.00016821,2]
[373135908,1752876643552,-151.0,0.00016821,2]
[373135909,1752876643563,-151.0,0.00016821,2]
[373135910,1752876643572,-460.0,0.00016821,2]
[373135911,1752876643584,-460.0,0.00016821,2]
[373135912,1752876643593,-460.0,0.00016821,2]
[373135913,1752876643603,-151.0,0.00016821,2]
[373135914,1752876643613,-202.883268,0.00016821,2]
[373135915,1752876643624,-202.883268,0.00016821,2]
[373135916,1752876643634,-460.0,0.00016821,2]
[373135917,1752876643645,-895.621787,0.00016821,2]
[373135918,1752876643655,-462.70618144,0.00016821,2]
[373135919,1752876643665,-895.621787,0.00016821,2]
[373135920,1752876643676,-804.97,0.00016821,2]
[373135921,1752876643686,-151.0,0.00016821,2]
[373135922,1752876643697,-151.0,0.00016821,2]
[373135923,1752876643707,-1371.26,0.00016821,2]
[373135924,1752876643718,-271.0,0.00016835,2]
[373135925,1752876643727,-580.0,0.00016861,2]
[373135926,1752876643737,-151.0,0.0001692,2]
[373135927,1752876643746,-254.706984,0.0001692,2]
[373135928,1752876643757,-2023.69,0.0001692,2]
[373135929,1752876643767,-460.0,0.0001692,2]
[373135930,1752876643781,-460.0,0.0001692,2]
[373135931,1752876643791,-460.0,0.0001692,2]
[373135932,1752876643800,-292.0,0.00016921,2]
[373135933,1752876643810,-500.0,0.00016921,2]
[373135934,1752876643820,-500.0,0.00016921,2]
[373135935,1752876643830,-151.0,0.00016921,2]
[373135936,1752876643839,-151.0,0.00016921,2]
[373135937,1752876643849,-198.0,0.00016921,2]
[373135938,1752876643858,-1029.4,0.00016922,2]
[373135939,1752876643868,-151.0,0.00016922,2]
[373135940,1752876643878,-151.0,0.00016922,2]
[373135941,1752876643887,-3121.05,0.00016922,2]
[373135942,1752876643897,-1090.71,0.00016922,2]
[373135943,1752876643907,-460.0,0.00016989,2]
[373135944,1752876643917,-460.0,0.00016989,2]
[373135945,1752876643927,-1320.38,0.00016989,2]
[373135946,1752876643936,-460.0,0.0001699,2]
[373135947,1752876643947,-460.0,0.0001699,2]
[373135948,1752876643957,-3602.87,0.0001699,2]
[373135949,1752876643967,-1923.94,0.00016991,2]
[373135950,1752876643977,-460.0,0.00016991,2]
[373135951,1752876643988,-460.0,0.00016991,2]
[373135952,1752876643998,-1604.81,0.00016991,2]
[373135953,1752876644008,-1078.1,0.00016991,2]
[373135954,1752876644017,-502.76,0.00016991,2]
[373135955,1752876644026,-460.0,0.00016991,2]
[373135956,1752876644037,-517.55,0.00016991,2]
[373135957,1752876644046,-460.0,0.00016992,2]
[373135958,1752876644056,-460.0,0.00016992,2]
[373135959,1752876644067,-460.0,0.00016992,2]
[373135960,1752876644076,-460.0,0.00016992,2]
[373135961,1752876644086,-631.1,0.00016992,2]
[373135962,1752876644095,-460.0,0.00016992,2]
[373135963,1752876644106,-504.22,0.00016992,2]
[373135964,1752876644115,-460.0,0.00016992,2]
[373135965,1752876644125,-1622.02,0.00016992,2]
[373135966,1752876644135,-471.26017669,0.00016992,2]
[373135967,1752876644144,-460.0,0.00016992,2]
[373135968,1752876644154,-649.85,0.00016992,2]
[373135969,1752876644163,-460.0,0.00016992,2]
[373135970,1752876644173,-460.0,0.00016992,2]
[373135971,1752876644182,-460.0,0.00016992,2]
[373135972,1752876644192,-460.0,0.00016992,2]
[373135973,1752876644202,-460.0,0.00016992,2]
[373135974,1752876644213,-460.0,0.00016992,2]
[373135975,1752876644223,-151.0,0.00017,2]
[373135976,1752876644233,-151.0,0.00017,2]
[373135977,1752876644242,-189.407981,0.00017,2]
[373135978,1752876644252,-189.407981,0.00017,2]
[373135979,1752876644261,-482.362476,0.00017,2]
[373135980,1752876644271,-346.559095,0.00017,2]
[373135981,1752876644281,-482.362476,0.00017,2]
[373135982,1752876644290,-346.559095,0.00017,2]
[373135983,1752876644299,-151.0,0.00017,2]
[373135984,1752876644309,-151.0,0.00017,2]
[373135985,1752876644319,-207.4,0.00017028,2]
[373135986,1752876644329,-283.57159003,0.00017028,2]
[373135987,1752876644338,-151.0,0.00017028,2]
[373135988,1752876644348,-151.0,0.00017028,2]
[373135989,1752876644357,-151.0,0.00017028,2]
[373135990,1752876644367,-217.07464614,0.00017028,2]
[373135991,1752876644376,-151.0,0.00017028,2]
[373135992,1752876644386,-3801.642,0.00017028,2]
[373135993,1752876644395,-151.0,0.00017028,2]
[373135994,1752876644405,-151.0,0.00017028,2]
[373135995,1752876644414,-151.0,0.00017028,2]
[373135996,1752876644424,-151.0,0.00017028,2]
[373135997,1752876644433,-151.0,0.00017028,2]
[373135998,1752876644443,-151.0,0.00017028,2]
[373135999,1752876644452,-151.0,0.00017028,2]
[373136000,1752876644462,-151.0,0.00017028,2]
[373136001,1752876644471,-151.0,0.00017028,2]
[373136002,1752876644481,-151.0,0.00017028,2]
[373136003,1752876644490,-151.0,0.00017028,2]
[373136004,1752876644500,-151.0,0.00017028,2]
[373136005,1752876644513,-151.0,0.00017028,2]
[373136006,1752876644523,-25000.0,0.00017028,2]
[373136007,1752876644532,-151.0,0.00017028,2]
[373136008,1752876644543,-151.0,0.00017028,2]
[373136009,1752876644552,-151.0,0.00017028,2]
[373136010,1752876644562,-151.0,0.00017028,2]
[373136011,1752876644572,-250.0,0.00017039,2]
[373136012,1752876644582,-169.97215349,0.00017049,2]
[373136013,1752876644592,-1490.28,0.00017049,2]
[373136014,1752876644601,-460.0,0.00017049,2]
[373136015,1752876644611,-460.0,0.00017049,2]
[373136016,1752876644620,-460.0,0.0001705,2]
[373136017,1752876644630,-151.0,0.0001705,2]
[373136018,1752876644639,-151.0,0.0001705,2]
[373136019,1752876644649,-151.0,0.0001705,2]
[373136020,1752876644658,-151.0,0.0001705,2]
[373136021,1752876644669,-460.0,0.0001705,2]
[373136022,1752876644678,-151.0,0.0001705,2]
[373136023,1752876644689,-460.0,0.0001705,2]
[373136024,1752876644698,-895.621787,0.0001705,2]
[373136025,1752876644708,-455.21875513,0.0001705,2]
[373136026,1752876644717,-895.621787,0.0001705,2]
[373136027,1752876644727,-460.0,0.0001705,2]
[373136028,1752876644736,-151.0,0.0001705,2]
[373136029,1752876644745,-151.0,0.0001705,2]
[373136030,1752876644754,-151.0,0.00017051,2]
[373136031,1752876644764,-151.0,0.00017051,2]
[373136032,1752876644773,-151.0,0.00017051,2]
[373136033,1752876644782,-151.0,0.00017051,2]
[373136034,1752876644792,-3048.14937814,0.00017083,2]
[373136035,1752876644801,-202.883268,0.00017088,2]
[373136036,1752876644811,-202.883268,0.00017088,2]
[373136037,1752876644821,-460.0,0.00017092,2]
[373136038,1752876644830,-460.0,0.00017092,2]
[373136039,1752876644840,-743.2,0.00017092,2]
[373136040,1752876644849,-460.0,0.00017092,2]
[373136041,1752876644859,-460.0,0.00017092,2]
[373136042,1752876644868,-460.0,0.00017092,2]
[373136043,1752876644878,-208.95,0.00017092,2]
[373136044,1752876644887,-460.0,0.00017092,2]
[373136045,1752876644897,-633.08,0.00017092,2]
[373136046,1752876644906,-460.0,0.00017092,2]
[373136047,1752876644916,-151.0,0.00017093,2]
[373136048,1752876644925,-151.0,0.00017093,2]
[373136049,1752876644935,-151.0,0.00017093,2]
[373136050,1752876644945,-151.0,0.00017093,2]
[373136051,1752876644954,-151.0,0.00017093,2]
[373136052,1752876644964,-151.0,0.00017093,2]
[373136053,1752876644973,-151.0,0.00017093,2]
[373136054,1752876644984,-151.0,0.00017093,2]
[373136055,1752876644993,-3316.03,0.00017093,2]
[373136056,1752876645003,-460.0,0.00017094,2]
[373136057,1752876645012,-460.0,0.00017094,2]
[373136058,1752876645022,-460.0,0.00017094,2]
[373136059,1752876645031,-460.0,0.00017094,2]
[373136060,1752876645041,-460.0,0.00017094,2]
[373136061,1752876645050,-460.0,0.00017094,2]
[373136062,1752876645060,-460.0,0.00017094,2]
[373136063,1752876645069,-825.89,0.00017094,2]
[373136064,1752876645079,-460.0,0.00017094,2]
[373136065,1752876645090,-460.0,0.00017094,2]
[373136066,1752876645100,-460.0,0.00017094,2]
[373136067,1752876645111,-151.0,0.00017094,2]
[373136068,1752876645120,-460.0,0.00017094,2]
[373136069,1752876645131,-151.0,0.00017095,2]
[373136070,1752876645140,-804.97,0.00017095,2]
[373136071,1752876645150,-1371.26,0.00017095,2]
[373136072,1752876645162,-500.0,0.00017121,2]
[373136073,1752876645172,-500.0,0.00017137,2]
[373136074,1752876645182,-151.0,0.00017194,2]
[373136075,1752876645194,-151.0,0.00017194,2]
[373136076,1752876645204,-151.0,0.00017194,2]
[373136078,1752876645215,-189.407981,0.00017194,2]
[373136079,1752876645225,-189.407981,0.00017194,2]
[373136080,1752876645235,-482.362476,0.00017194,2]
[373136081,1752876645245,-346.559095,0.00017194,2]
[373136082,1752876645254,-482.362476,0.00017194,2]
[373136083,1752876645264,-346.559095,0.00017194,2]
[373136085,1752876645275,-151.0,0.00017194,2]
[373136086,1752876645287,-151.0,0.00017194,2]
[373136088,1752876645297,-2023.69,0.00017194,2]
[373136089,1752876645307,-460.0,0.00017194,2]
[373136090,1752876645318,-500.0,0.00017195,2]
[373136091,1752876645328,-500.0,0.00017195,2]
[373136092,1752876645338,-218.55852305,0.00017195,2]
[373136093,1752876645348,-151.0,0.00017195,2]
[373136094,1752876645358,-151.0,0.00017195,2]
[373136095,1752876645369,-151.0,0.00017195,2]
[373136096,1752876645379,-264.104677,0.00017195,2]
[373136097,1752876645390,-264.104677,0.00017195,2]
[373136098,1752876645400,-151.0,0.00017195,2]
[373136099,1752876645410,-151.0,0.00017195,2]
[373136100,1752876645420,-196.657296,0.00017195,2]
[373136101,1752876645431,-151.0,0.00017195,2]
[373136102,1752876645442,-151.0,0.00017195,2]
[373136103,1752876645452,-151.0,0.00017195,2]
[373136104,1752876645464,-185.571944,0.00017195,2]
[373136105,1752876645475,-151.0,0.00017195,2]
[373136106,1752876645487,-267.480686,0.00017195,2]
[373136107,1752876645499,-267.480686,0.00017195,2]
[373136108,1752876645514,-224.677871,0.00017195,2]
[373136109,1752876645524,-151.0,0.00017195,2]
[373136110,1752876645534,-151.0,0.00017195,2]
[373136111,1752876645544,-223.173852,0.00017195,2]
[373136112,1752876645555,-202.883268,0.00017195,2]
[373136113,1752876645565,-202.883268,0.00017195,2]
[373136114,1752876645575,-895.621787,0.00017195,2]
[373136115,1752876645587,-895.621787,0.00017195,2]
[373136116,1752876645599,-151.0,0.00017195,2]
[373136117,1752876645610,-151.0,0.00017195,2]
[373136118,1752876645621,-151.0,0.00017196,2]
[373136119,1752876645630,-151.0,0.00017196,2]
[373136120,1752876645644,-151.0,0.00017196,2]
[373136121,1752876645654,-151.0,0.00017196,2]
[373136122,1752876645664,-151.0,0.00017196,2]
[373136123,1752876645675,-151.0,0.00017196,2]
[373136124,1752876645685,-151.0,0.00017196,2]
[373136125,1752876645696,-151.0,0.00017196,2]
[373136126,1752876645706,-151.0,0.00017196,2]
[373136127,1752876645715,-151.0,0.00017196,2]
[373136128,1752876645724,-151.0,0.00017196,2]
[373136129,1752876645734,-1029.4,0.00017196,2]
[373136130,1752876645744,-151.0,0.00017196,2]
[373136131,1752876645754,-151.0,0.00017196,2]
[373136134,1752876645861,-3121.05,0.00017196,2]
[373136135,1752876645872,-1090.71,0.00017196,2]
[373136136,1752876645883,-460.0,0.00017263,2]
[373136137,1752876645892,-1320.38,0.00017263,2]
[373136138,1752876645901,-3602.87,0.00017264,2]
[373136139,1752876645911,-1923.94,0.00017265,2]
[373136140,1752876645920,-460.0,0.00017265,2]
[373136141,1752876645930,-227.24,0.00017265,2]
[373136142,1752876645939,-1604.81,0.00017265,2]
[373136143,1752876645949,-1078.1,0.00017265,2]
[373136144,1752876645958,-502.76,0.00017265,2]
[373136145,1752876645968,-460.0,0.00017265,2]
[373136146,1752876645978,-517.55,0.00017265,2]
[373136147,1752876645987,-460.0,0.00017266,2]
[373136148,1752876645998,-460.0,0.00017266,2]
[373136149,1752876646007,-482.02,0.00017266,2]
[373136150,1752876646017,-631.1,0.00017266,2]
[373136151,1752876646027,-460.0,0.00017266,2]
[373136152,1752876646037,-460.0,0.00017266,2]
[373136153,1752876646047,-1622.02,0.00017266,2]
[373136154,1752876646057,-649.85,0.00017266,2]
[373136155,1752876646067,-460.0,0.00017266,2]
[373136156,1752876646077,-460.0,0.00017266,2]
[373136157,1752876646086,-460.0,0.00017266,2]
[373136158,1752876646096,-460.0,0.00017266,2]
[373136159,1752876646106,-460.0,0.00017266,2]
[373136160,1752876646115,-1490.28,0.00017323,2]
[373136161,1752876646125,-460.0,0.00017323,2]
[373136162,1752876646135,-151.0,0.00017323,2]
[373136163,1752876646144,-460.0,0.00017324,2]
[373136164,1752876646154,-460.95222348,0.00017324,2]
[373136165,1752876646163,-151.0,0.00017326,2]
[373136166,1752876646173,-151.0,0.00017326,2]
[373136167,1752876646182,-197.32658262,0.00017366,2]
[373136168,1752876646191,-743.2,0.00017366,2]
[373136169,1752876646201,-460.0,0.00017366,2]
[373136170,1752876646212,-460.0,0.00017366,2]
[373136171,1752876646222,-460.0,0.00017366,2]
[373136172,1752876646232,-633.08,0.00017366,2]
[373136173,1752876646242,-460.0,0.00017366,2]
[373136174,1752876646253,-151.0,0.00017367,2]
[373136175,1752876646262,-151.0,0.00017367,2]
[373136176,1752876646271,-151.0,0.00017367,2]
[373136177,1752876646281,-189.407981,0.00017367,2]
[373136178,1752876646290,-189.407981,0.00017367,2]
[373136179,1752876646299,-151.0,0.00017367,2]
[373136180,1752876646310,-482.362476,0.00017367,2]
[373136181,1752876646319,-346.559095,0.00017367,2]
[373136182,1752876646329,-482.362476,0.00017367,2]
[373136183,1752876646338,-346.559095,0.00017367,2]
[373136185,1752876646348,-151.0,0.00017367,2]
[373136187,1752876646357,-151.0,0.00017367,2]
[373136188,1752876646367,-151.0,0.00017367,2]
[373136189,1752876646376,-151.0,0.00017367,2]
[373136190,1752876646386,-202.883268,0.00017367,2]
[373136191,1752876646396,-202.883268,0.00017367,2]
[373136192,1752876646406,-895.621787,0.00017367,2]
[373136193,1752876646416,-895.621787,0.00017367,2]
[373136194,1752876646426,-151.0,0.00017367,2]
[373136195,1752876646436,-151.0,0.00017367,2]
[373136196,1752876646447,-3316.03,0.00017367,2]
[373136197,1752876646457,-460.0,0.00017368,2]
[373136198,1752876646468,-460.0,0.00017368,2]
[373136199,1752876646480,-460.0,0.00017368,2]
[373136200,1752876646490,-460.0,0.00017368,2]
[373136201,1752876646499,-460.0,0.00017368,2]
[373136202,1752876646513,-825.89,0.00017368,2]
[373136203,1752876646521,-214.77888614,0.00017368,2]
[373136204,1752876646529,-151.0,0.00017369,2]
[373136205,1752876646537,-151.0,0.00017369,2]
[373136206,1752876646545,-151.0,0.00017369,2]
[373136207,1752876646553,-151.0,0.00017369,2]
[373136208,1752876646565,-151.0,0.00017369,2]
[373136209,1752876646574,-151.0,0.00017369,2]
[373136210,1752876646586,-151.0,0.00017369,2]
[373136211,1752876646597,-151.0,0.00017369,2]
[373136212,1752876646607,-151.0,0.00017369,2]
[373136213,1752876646618,-152.095388,0.00017369,2]
[373136214,1752876646628,-264.104677,0.00017369,2]
[373136215,1752876646641,-264.104677,0.00017369,2]
[373136216,1752876646651,-264.104677,0.00017369,2]
[373136217,1752876646661,-264.104677,0.00017369,2]
[373136218,1752876646670,-151.0,0.00017369,2]
[373136219,1752876646680,-151.0,0.00017369,2]
[373136220,1752876646691,-151.0,0.00017369,2]
[373136221,1752876646701,-170.06651,0.00017369,2]
[373136222,1752876646711,-292.590404,0.00017369,2]
[373136223,1752876646723,-163.445326,0.00017369,2]
[373136224,1752876646734,-151.0,0.00017369,2]
[373136225,1752876646744,-151.0,0.00017369,2]
[373136226,1752876646756,-151.0,0.00017369,2]
[373136227,1752876646765,-151.0,0.00017369,2]
[373136228,1752876646775,-196.657296,0.00017369,2]
[373136229,1752876646786,-196.657296,0.00017369,2]
[373136230,1752876646797,-151.0,0.00017369,2]
[373136231,1752876646807,-151.0,0.00017369,2]
[373136232,1752876646818,-151.0,0.00017369,2]
[373136233,1752876646828,-151.0,0.00017369,2]
[373136234,1752876646839,-151.0,0.00017369,2]
[373136235,1752876646848,-151.0,0.00017369,2]
[373136236,1752876646858,-151.0,0.00017369,2]
[373136237,1752876646869,-151.0,0.00017369,2]
[373136238,1752876646880,-151.0,0.00017369,2]
[373136239,1752876646890,-151.0,0.00017369,2]
[373136240,1752876646900,-151.0,0.00017369,2]
[373136241,1752876646910,-189.407981,0.00017369,2]
[373136242,1752876646920,-151.0,0.00017369,2]
[373136243,1752876646929,-189.407981,0.00017369,2]
[373136244,1752876646939,-189.407981,0.00017369,2]
[373136245,1752876646949,-189.407981,0.00017369,2]
[373136246,1752876646958,-151.0,0.00017369,2]
[373136247,1752876646967,-234.576232,0.00017369,2]
[373136248,1752876646977,-482.362476,0.00017369,2]
[373136249,1752876646987,-482.362476,0.00017369,2]
[373136250,1752876646996,-346.559095,0.00017369,2]
[373136251,1752876647006,-346.559095,0.00017369,2]
[373136252,1752876647016,-482.362476,0.00017369,2]
[373136253,1752876647029,-482.362476,0.00017369,2]
[373136254,1752876647038,-346.559095,0.00017369,2]
[373136255,1752876647048,-346.559095,0.00017369,2]